[Event "Titled Tuesday Blitz October 31 Late 2023"]
[White "Friedland, Moshe"]
[Black "Javakhadze, Zurab"]
[WhiteFideId "2812843"]
[BlackFideId "13603647"]
[WhiteElo "2556"]
[BlackElo "2783"]
[Result "0-1"]
[Round "2"]
[TimeControl "180+1"]
[Date "2023.10.31"]
[WhiteClock "0:00:00"]
[BlackClock "0:00:40"]
[Board "40"]

1. a3 {[%clk 0:03:00]}  g6 {[%clk 0:02:54]} 2. Nf3 {[%clk 0:02:55]}  Bg7 {[%clk 0:02:54]} 3. d4 {[%clk 0:02:55]}  Nf6 {[%clk 0:02:53]} 4. c3 {[%clk 0:02:52]}  O-O {[%clk 0:02:43]} 5. Bf4 {[%clk 0:02:39]}  d6 {[%clk 0:02:42]} 6. e3 {[%clk 0:02:37]}  Nc6 {[%clk 0:02:41]} 7. h3 {[%clk 0:02:27]}  Bd7 {[%clk 0:02:34]} 8. Be2 {[%clk 0:02:23]}  Nh5 {[%clk 0:02:33]} 9. Bh2 {[%clk 0:02:22]}  e5 {[%clk 0:02:34]} 10. O-O {[%clk 0:02:17]}  Kh8 {[%clk 0:02:29]} 11. Nbd2 {[%clk 0:01:59]}  Qe7 {[%clk 0:02:28]} 12. Nc4 {[%clk 0:01:52]}  f5 {[%clk 0:02:13]} 13. dxe5 {[%clk 0:01:31]}  dxe5 {[%clk 0:02:10]} 14. Nfxe5 {[%clk 0:01:22]}  Nf6 {[%clk 0:02:01]} 15. Nxd7 {[%clk 0:01:17]}  Nxd7 {[%clk 0:02:01]} 16. Bf3 {[%clk 0:01:16]}  Nc5 {[%clk 0:01:57]} 17. Qc2 {[%clk 0:01:00]}  Qe6 {[%clk 0:01:49]} 18. Qe2 {[%clk 0:00:47]}  Ne5 {[%clk 0:01:39]} 19. Nxe5 {[%clk 0:00:46]}  Bxe5 {[%clk 0:01:40]} 20. Bxe5+ {[%clk 0:00:46]}  Qxe5 {[%clk 0:01:40]} 21. Rfd1 {[%clk 0:00:45]}  Rad8 {[%clk 0:01:38]} 22. Rxd8 {[%clk 0:00:43]}  Rxd8 {[%clk 0:01:39]} 23. Rd1 {[%clk 0:00:43]}  Rd6 {[%clk 0:01:36]} 24. Rxd6 {[%clk 0:00:40]}  Qxd6 {[%clk 0:01:37]} 25. Qd1 {[%clk 0:00:40]}  Qxd1+ {[%clk 0:01:27]} 26. Bxd1 {[%clk 0:00:39]}  Nd3 {[%clk 0:01:22]} 27. b4 {[%clk 0:00:34]}  Kg7 {[%clk 0:01:22]} 28. Be2 {[%clk 0:00:28]}  Ne5 {[%clk 0:01:20]} 29. f4 {[%clk 0:00:26]}  Nd7 {[%clk 0:01:19]} 30. Kf2 {[%clk 0:00:21]}  Nf6 {[%clk 0:01:19]} 31. Bf3 {[%clk 0:00:22]}  c6 {[%clk 0:01:17]} 32. g4 {[%clk 0:00:22]}  Kf7 {[%clk 0:01:14]} 33. g5 {[%clk 0:00:22]}  Ne8 {[%clk 0:01:08]} 34. Ke2 {[%clk 0:00:19]}  Nd6 {[%clk 0:01:08]} 35. Kd3 {[%clk 0:00:20]}  Ke6 {[%clk 0:01:08]} 36. c4 {[%clk 0:00:19]}  Kd7 {[%clk 0:01:02]} 37. h4 {[%clk 0:00:19]}  b5 {[%clk 0:01:01]} 38. c5 {[%clk 0:00:16]}  Nc4 {[%clk 0:01:01]} 39. e4 {[%clk 0:00:11]}  fxe4+ {[%clk 0:01:00]} 40. Bxe4 {[%clk 0:00:10]}  Nxa3 {[%clk 0:00:55]} 41. f5 {[%clk 0:00:11]}  Nc4 {[%clk 0:00:52]} 42. fxg6 {[%clk 0:00:09]}  Ne5+ {[%clk 0:00:40]} 43. Kd4 {[%clk 0:00:07]}  Nxg6 {[%clk 0:00:40]} 44. h5 {[%clk 0:00:00]}  Nf4 {[%clk 0:00:40]} 0-1


[Site "https://www.chess.com"]

[Event "Titled Tuesday Blitz October 31 Late 2023"]
[White "Hajiyev, Kanan"]
[Black "Alex_Sahakyan2006"]
[WhiteFideId "13404148"]
[WhiteElo "2554"]
[BlackElo "2758"]
[Result "1-0"]
[Round "2"]
[TimeControl "180+1"]
[Date "2023.10.31"]
[WhiteClock "0:01:35"]
[BlackClock "0:02:05"]
[Board "41"]

1. d4 {[%clk 0:03:00]}  Nf6 {[%clk 0:02:58]} 2. Nf3 {[%clk 0:02:59]}  b6 {[%clk 0:02:52]} 3. g3 {[%clk 0:02:59]}  Bb7 {[%clk 0:02:52]} 4. Bg2 {[%clk 0:02:59]}  e6 {[%clk 0:02:53]} 5. Nh4 {[%clk 0:03:00]}  c5 {[%clk 0:02:54]} 6. Bxb7 {[%clk 0:02:59]}  Nc6 {[%clk 0:02:49]} 7. Bxa8 {[%clk 0:02:59]}  Qxa8 {[%clk 0:02:50]} 8. dxc5 {[%clk 0:02:59]}  Bxc5 {[%clk 0:02:44]} 9. O-O {[%clk 0:02:59]}  h6 {[%clk 0:02:36]} 10. Nc3 {[%clk 0:02:58]}  g5 {[%clk 0:02:36]} 11. Ng2 {[%clk 0:02:59]}  Ne5 {[%clk 0:02:32]} 12. Be3 {[%clk 0:02:58]}  Be7 {[%clk 0:02:31]} 13. Bd4 {[%clk 0:02:52]}  Nc6 {[%clk 0:02:28]} 14. Bxf6 {[%clk 0:02:11]}  Bxf6 {[%clk 0:02:29]} 15. Nb5 {[%clk 0:02:08]}  Qb8 {[%clk 0:02:22]} 16. Qd6 {[%clk 0:02:06]}  Qc8 {[%clk 0:02:14]} 17. Qc7 {[%clk 0:01:48]}  Qa6 {[%clk 0:02:12]} 18. a4 {[%clk 0:01:39]}  Be5 {[%clk 0:02:05]} 19. Qxe5 {[%clk 0:01:35]} 1-0


[Site "https://www.chess.com"]

[Event "Titled Tuesday Blitz October 31 Late 2023"]
[White "Ribeiro, Matheus Mendes Domingues"]
[Black "Bashirli, Nail"]
[WhiteFideId "324226923"]
[BlackFideId "13406809"]
[WhiteElo "2552"]
[BlackElo "2758"]
[Result "0-1"]
[Round "2"]
[TimeControl "180+1"]
[Date "2023.10.31"]
[WhiteClock "0:00:00"]
[BlackClock "0:00:32"]
[Board "43"]

1. c4 {[%clk 0:03:00]}  Nf6 {[%clk 0:02:56]} 2. Nc3 {[%clk 0:03:00]}  e5 {[%clk 0:02:54]} 3. Nf3 {[%clk 0:02:59]}  Nc6 {[%clk 0:02:54]} 4. e3 {[%clk 0:02:59]}  g6 {[%clk 0:02:48]} 5. d4 {[%clk 0:02:54]}  exd4 {[%clk 0:02:48]} 6. exd4 {[%clk 0:02:55]}  Bg7 {[%clk 0:02:49]} 7. d5 {[%clk 0:02:52]}  Ne7 {[%clk 0:02:49]} 8. Bd3 {[%clk 0:02:51]}  O-O {[%clk 0:02:49]} 9. O-O {[%clk 0:02:52]}  d6 {[%clk 0:02:50]} 10. Re1 {[%clk 0:02:47]}  Bg4 {[%clk 0:02:49]} 11. h3 {[%clk 0:02:46]}  Bxf3 {[%clk 0:02:49]} 12. Qxf3 {[%clk 0:02:46]}  Nd7 {[%clk 0:02:49]} 13. Bf4 {[%clk 0:02:27]}  Ne5 {[%clk 0:02:41]} 14. Bxe5 {[%clk 0:02:27]}  Bxe5 {[%clk 0:02:32]} 15. Re2 {[%clk 0:02:27]}  Kg7 {[%clk 0:02:30]} 16. Rae1 {[%clk 0:02:27]}  Bxc3 {[%clk 0:02:29]} 17. bxc3 {[%clk 0:02:24]}  Ng8 {[%clk 0:02:29]} 18. Qe3 {[%clk 0:02:20]}  Qf6 {[%clk 0:02:18]} 19. Qd4 {[%clk 0:02:20]}  Qxd4 {[%clk 0:02:12]} 20. cxd4 {[%clk 0:02:20]}  Nf6 {[%clk 0:02:13]} 21. Re7 {[%clk 0:02:17]}  Rfe8 {[%clk 0:02:13]} 22. Kf1 {[%clk 0:01:55]}  Kf8 {[%clk 0:02:10]} 23. Rxc7 {[%clk 0:01:53]}  Rxe1+ {[%clk 0:01:36]} 24. Kxe1 {[%clk 0:01:52]}  Rb8 {[%clk 0:01:37]} 25. g4 {[%clk 0:01:38]}  Ke8 {[%clk 0:01:35]} 26. Bc2 {[%clk 0:01:21]}  a6 {[%clk 0:01:23]} 27. Bb3 {[%clk 0:01:12]}  b6 {[%clk 0:01:11]} 28. c5 {[%clk 0:01:08]}  bxc5 {[%clk 0:01:07]} 29. dxc5 {[%clk 0:01:09]}  dxc5 {[%clk 0:01:08]} 30. d6 {[%clk 0:01:08]}  Rb6 {[%clk 0:01:02]} 31. Rxf7 {[%clk 0:00:53]}  Rxd6 {[%clk 0:01:02]} 32. Ra7 {[%clk 0:00:41]}  Nd7 {[%clk 0:00:46]} 33. Ba4 {[%clk 0:00:25]}  Ke7 {[%clk 0:00:42]} 34. Bxd7 {[%clk 0:00:25]}  Rxd7 {[%clk 0:00:42]} 35. Rxa6 {[%clk 0:00:23]}  Rd3 {[%clk 0:00:41]} 36. Ra7+ {[%clk 0:00:17]}  Kf6 {[%clk 0:00:38]} 37. Rxh7 {[%clk 0:00:18]}  Ra3 {[%clk 0:00:38]} 38. Rc7 {[%clk 0:00:17]}  Ra5 {[%clk 0:00:38]} 39. Kf1 {[%clk 0:00:17]}  Ke5 {[%clk 0:00:37]} 40. Kg2 {[%clk 0:00:13]}  Kd4 {[%clk 0:00:37]} 41. Rd7+ {[%clk 0:00:13]}  Ke4 {[%clk 0:00:37]} 42. Rd6 {[%clk 0:00:08]}  g5 {[%clk 0:00:36]} 43. Rc6 {[%clk 0:00:04]}  Kd3 {[%clk 0:00:35]} 44. Rd6+ {[%clk 0:00:05]}  Kc3 {[%clk 0:00:34]} 45. Rd5 {[%clk 0:00:05]}  Kb4 {[%clk 0:00:31]} 46. Rxg5 {[%clk 0:00:05]}  Rxa2 {[%clk 0:00:31]} 47. Rg8 {[%clk 0:00:06]}  c4 {[%clk 0:00:32]} 48. h4 {[%clk 0:00:06]}  c3 {[%clk 0:00:32]} 49. Rc8 {[%clk 0:00:06]}  Ra5 {[%clk 0:00:32]} 50. Rb8+ {[%clk 0:00:04]}  Rb5 {[%clk 0:00:32]} 51. Re8 {[%clk 0:00:04]}  c2 {[%clk 0:00:32]} 52. Re1 {[%clk 0:00:05]}  Kc3 {[%clk 0:00:32]} 53. Rc1 {[%clk 0:00:03]}  Kd2 {[%clk 0:00:32]} 54. Rxc2+ {[%clk 0:00:04]}  Kxc2 {[%clk 0:00:33]} 55. h5 {[%clk 0:00:04]}  Kd3 {[%clk 0:00:34]} 56. Kg3 {[%clk 0:00:04]}  Ke4 {[%clk 0:00:35]} 57. h6 {[%clk 0:00:05]}  Ke5 {[%clk 0:00:34]} 58. g5 {[%clk 0:00:04]}  Kf5 {[%clk 0:00:34]} 59. h7 {[%clk 0:00:03]}  Rb8 {[%clk 0:00:31]} 60. f4 {[%clk 0:00:00]}  Rh8 {[%clk 0:00:32]} 0-1


[Site "https://www.chess.com"]

[Event "Titled Tuesday Blitz October 31 Late 2023"]
[White "Roebers, Eline"]
[Black "Blanco Ronquillo, Humberto L."]
[WhiteFideId "1058401"]
[BlackFideId "3504239"]
[WhiteElo "2552"]
[BlackElo "2754"]
[Result "1-0"]
[Round "2"]
[TimeControl "180+1"]
[Date "2023.10.31"]
[WhiteClock "0:01:28"]
[BlackClock "0:00:22"]
[Board "44"]

1. f4 {[%clk 0:03:00]}  Nf6 {[%clk 0:02:58]} 2. Nf3 {[%clk 0:03:00]}  g6 {[%clk 0:02:57]} 3. g3 {[%clk 0:03:00]}  Bg7 {[%clk 0:02:57]} 4. Bg2 {[%clk 0:02:59]}  O-O {[%clk 0:02:58]} 5. O-O {[%clk 0:03:00]}  c5 {[%clk 0:02:58]} 6. d3 {[%clk 0:02:59]}  d5 {[%clk 0:02:59]} 7. Qe1 {[%clk 0:02:59]}  d4 {[%clk 0:02:57]} 8. Na3 {[%clk 0:02:58]}  Nc6 {[%clk 0:02:55]} 9. Bd2 {[%clk 0:02:57]}  Nd5 {[%clk 0:02:54]} 10. c3 {[%clk 0:02:52]}  h6 {[%clk 0:02:27]} 11. Rc1 {[%clk 0:02:46]}  Be6 {[%clk 0:02:25]} 12. Qf2 {[%clk 0:02:40]}  Rc8 {[%clk 0:02:11]} 13. Nc4 {[%clk 0:02:25]}  Kh7 {[%clk 0:01:29]} 14. h3 {[%clk 0:02:20]}  Qd7 {[%clk 0:01:08]} 15. g4 {[%clk 0:02:17]}  dxc3 {[%clk 0:00:42]} 16. bxc3 {[%clk 0:02:15]}  f6 {[%clk 0:00:43]} 17. Rfd1 {[%clk 0:02:03]}  b5 {[%clk 0:00:42]} 18. Na3 {[%clk 0:01:52]}  a6 {[%clk 0:00:41]} 19. e4 {[%clk 0:01:49]}  Nb6 {[%clk 0:00:40]} 20. Be3 {[%clk 0:01:48]}  Na4 {[%clk 0:00:40]} 21. d4 {[%clk 0:01:46]}  cxd4 {[%clk 0:00:37]} 22. cxd4 {[%clk 0:01:46]}  Nb4 {[%clk 0:00:33]} 23. d5 {[%clk 0:01:45]}  Bf7 {[%clk 0:00:33]} 24. Qd2 {[%clk 0:01:35]}  a5 {[%clk 0:00:32]} 25. Bf1 {[%clk 0:01:28]}  Rc2 {[%clk 0:00:22]} 1-0


[Site "https://www.chess.com"]

[Event "Titled Tuesday Blitz October 31 Late 2023"]
[White "Krzyzanowski, Marcin"]
[Black "Golubev, Mikhail"]
[WhiteFideId "1132199"]
[BlackFideId "14100983"]
[WhiteElo "2754"]
[BlackElo "2551"]
[Result "1-0"]
[Round "2"]
[TimeControl "180+1"]
[Date "2023.10.31"]
[WhiteClock "0:00:08"]
[BlackClock "0:00:00"]
[Board "45"]

1. e4 {[%clk 0:02:59]}  c5 {[%clk 0:02:59]} 2. Nf3 {[%clk 0:02:59]}  d6 {[%clk 0:02:59]} 3. d4 {[%clk 0:02:59]}  Nf6 {[%clk 0:02:59]} 4. Nc3 {[%clk 0:02:59]}  cxd4 {[%clk 0:03:00]} 5. Nxd4 {[%clk 0:02:59]}  g6 {[%clk 0:03:00]} 6. Be3 {[%clk 0:02:55]}  Bg7 {[%clk 0:03:01]} 7. f3 {[%clk 0:02:56]}  Nc6 {[%clk 0:03:01]} 8. Qd2 {[%clk 0:02:55]}  O-O {[%clk 0:03:01]} 9. O-O-O {[%clk 0:02:55]}  d5 {[%clk 0:03:00]} 10. Nxc6 {[%clk 0:02:38]}  bxc6 {[%clk 0:02:59]} 11. Bh6 {[%clk 0:02:39]}  Bxh6 {[%clk 0:02:50]} 12. Qxh6 {[%clk 0:02:38]}  Rb8 {[%clk 0:02:51]} 13. e5 {[%clk 0:02:29]}  Nd7 {[%clk 0:02:51]} 14. Rd4 {[%clk 0:02:22]}  Re8 {[%clk 0:02:49]} 15. e6 {[%clk 0:02:17]}  Nf6 {[%clk 0:02:48]} 16. exf7+ {[%clk 0:02:09]}  Kxf7 {[%clk 0:02:49]} 17. Ra4 {[%clk 0:01:52]}  Qb6 {[%clk 0:02:37]} 18. b3 {[%clk 0:01:51]}  e5 {[%clk 0:02:20]} 19. h4 {[%clk 0:01:47]}  Qc5 {[%clk 0:02:11]} 20. Kb2 {[%clk 0:01:43]}  Rb4 {[%clk 0:00:49]} 21. Rxb4 {[%clk 0:01:27]}  Qxb4 {[%clk 0:00:50]} 22. h5 {[%clk 0:01:26]}  Qd4 {[%clk 0:00:44]} 23. hxg6+ {[%clk 0:01:24]}  hxg6 {[%clk 0:00:45]} 24. Rh4 {[%clk 0:01:10]}  Qf2 {[%clk 0:00:39]} 25. Bd3 {[%clk 0:01:02]}  Rg8 {[%clk 0:00:39]} 26. Qg5 {[%clk 0:00:55]}  Be6 {[%clk 0:00:23]} 27. Rh6 {[%clk 0:00:53]}  e4 {[%clk 0:00:17]} 28. fxe4 {[%clk 0:00:50]}  dxe4 {[%clk 0:00:17]} 29. Bxe4 {[%clk 0:00:31]}  Nxe4 {[%clk 0:00:16]} 30. Nxe4 {[%clk 0:00:32]}  Qd4+ {[%clk 0:00:16]} 31. Nc3 {[%clk 0:00:32]}  Bf5 {[%clk 0:00:16]} 32. Rh7+ {[%clk 0:00:26]}  Rg7 {[%clk 0:00:16]} 33. Rxg7+ {[%clk 0:00:23]}  Kxg7 {[%clk 0:00:16]} 34. Qe7+ {[%clk 0:00:23]}  Kh6 {[%clk 0:00:17]} 35. Qe2 {[%clk 0:00:23]}  Kg5 {[%clk 0:00:15]} 36. a3 {[%clk 0:00:22]}  Kf4 {[%clk 0:00:13]} 37. Qf3+ {[%clk 0:00:21]}  Ke5 {[%clk 0:00:11]} 38. Qxc6 {[%clk 0:00:17]}  Qd2 {[%clk 0:00:11]} 39. Qc5+ {[%clk 0:00:15]}  Kf6 {[%clk 0:00:11]} 40. Nd5+ {[%clk 0:00:15]}  Kg7 {[%clk 0:00:09]} 41. Qe7+ {[%clk 0:00:14]}  Kh6 {[%clk 0:00:09]} 42. Qe3+ {[%clk 0:00:14]}  Qxe3 {[%clk 0:00:08]} 43. Nxe3 {[%clk 0:00:15]}  Be4 {[%clk 0:00:08]} 44. Kc3 {[%clk 0:00:14]}  Kg5 {[%clk 0:00:08]} 45. Kd4 {[%clk 0:00:15]}  Kf4 {[%clk 0:00:09]} 46. c4 {[%clk 0:00:15]}  g5 {[%clk 0:00:09]} 47. b4 {[%clk 0:00:15]}  g4 {[%clk 0:00:09]} 48. Nxg4 {[%clk 0:00:14]}  Bxg2 {[%clk 0:00:09]} 49. Ne5 {[%clk 0:00:14]}  Kf5 {[%clk 0:00:07]} 50. c5 {[%clk 0:00:13]}  Ke6 {[%clk 0:00:07]} 51. b5 {[%clk 0:00:13]}  Bh1 {[%clk 0:00:07]} 52. a4 {[%clk 0:00:13]}  Bg2 {[%clk 0:00:07]} 53. c6 {[%clk 0:00:12]}  Bh1 {[%clk 0:00:07]} 54. Nc4 {[%clk 0:00:10]}  Bg2 {[%clk 0:00:06]} 55. Kc5 {[%clk 0:00:10]}  Be4 {[%clk 0:00:04]} 56. Nd6 {[%clk 0:00:10]}  Bf3 {[%clk 0:00:02]} 57. c7 {[%clk 0:00:10]}  Bb7 {[%clk 0:00:01]} 58. Nxb7 {[%clk 0:00:11]}  Kd7 {[%clk 0:00:01]} 59. b6 {[%clk 0:00:08]}  Kc8 {[%clk 0:00:00]} 60. Nd6+ {[%clk 0:00:08]} 1-0


[Site "https://www.chess.com"]

[Event "Titled Tuesday Blitz October 31 Late 2023"]
[White "Toropov, Pavel"]
[Black "Koellner, Ruben Gideon"]
[WhiteFideId "24129178"]
[BlackFideId "12993093"]
[WhiteElo "2550"]
[BlackElo "2753"]
[Result "1-0"]
[Round "2"]
[TimeControl "180+1"]
[Date "2023.10.31"]
[WhiteClock "0:00:11"]
[BlackClock "0:00:25"]
[Board "46"]

1. e4 {[%clk 0:02:49]}  d6 {[%clk 0:02:59]} 2. d4 {[%clk 0:02:42]}  Nf6 {[%clk 0:02:59]} 3. Nc3 {[%clk 0:02:38]}  e5 {[%clk 0:02:59]} 4. Nge2 {[%clk 0:02:34]}  Nc6 {[%clk 0:02:55]} 5. h3 {[%clk 0:02:25]}  exd4 {[%clk 0:02:55]} 6. Nxd4 {[%clk 0:01:58]}  Nxd4 {[%clk 0:02:54]} 7. Qxd4 {[%clk 0:01:49]}  Be7 {[%clk 0:02:55]} 8. g4 {[%clk 0:01:48]}  O-O {[%clk 0:02:54]} 9. Bg2 {[%clk 0:01:49]}  Be6 {[%clk 0:02:48]} 10. O-O {[%clk 0:01:46]}  Nd7 {[%clk 0:02:42]} 11. Be3 {[%clk 0:01:38]}  Bf6 {[%clk 0:02:40]} 12. Qd2 {[%clk 0:01:35]}  Nb6 {[%clk 0:02:35]} 13. b3 {[%clk 0:01:29]}  Qe8 {[%clk 0:02:31]} 14. Rac1 {[%clk 0:01:24]}  Qc6 {[%clk 0:02:30]} 15. Nd5 {[%clk 0:01:22]}  Bxd5 {[%clk 0:02:24]} 16. exd5 {[%clk 0:01:14]}  Qc3 {[%clk 0:02:24]} 17. Qxc3 {[%clk 0:01:10]}  Bxc3 {[%clk 0:02:25]} 18. Rcd1 {[%clk 0:01:10]}  Rfe8 {[%clk 0:02:18]} 19. Rd3 {[%clk 0:00:47]}  Bf6 {[%clk 0:02:17]} 20. a4 {[%clk 0:00:43]}  Nd7 {[%clk 0:02:16]} 21. f4 {[%clk 0:00:36]}  g6 {[%clk 0:02:14]} 22. Kf2 {[%clk 0:00:35]}  Re7 {[%clk 0:02:08]} 23. Kf3 {[%clk 0:00:30]}  Rae8 {[%clk 0:02:06]} 24. b4 {[%clk 0:00:26]}  b6 {[%clk 0:02:01]} 25. Rb1 {[%clk 0:00:21]}  g5 {[%clk 0:01:56]} 26. Bf1 {[%clk 0:00:16]}  gxf4 {[%clk 0:01:55]} 27. Bxf4 {[%clk 0:00:16]}  Re4 {[%clk 0:01:49]} 28. c3 {[%clk 0:00:14]}  h6 {[%clk 0:01:39]} 29. Rb2 {[%clk 0:00:14]}  Kg7 {[%clk 0:01:37]} 30. Re2 {[%clk 0:00:14]}  Rxe2 {[%clk 0:01:30]} 31. Bxe2 {[%clk 0:00:15]}  Bg5 {[%clk 0:01:28]} 32. Bg3 {[%clk 0:00:14]}  Ne5+ {[%clk 0:01:23]} 33. Bxe5+ {[%clk 0:00:14]}  Rxe5 {[%clk 0:01:24]} 34. Kf2 {[%clk 0:00:13]}  f5 {[%clk 0:01:23]} 35. gxf5 {[%clk 0:00:12]}  Rxf5+ {[%clk 0:01:24]} 36. Bf3 {[%clk 0:00:12]}  Bh4+ {[%clk 0:01:23]} 37. Ke2 {[%clk 0:00:11]}  Bf6 {[%clk 0:01:19]} 38. Re3 {[%clk 0:00:11]}  h5 {[%clk 0:01:17]} 39. Kd3 {[%clk 0:00:11]}  Be5 {[%clk 0:01:16]} 40. Kc4 {[%clk 0:00:11]}  Rg5 {[%clk 0:00:52]} 41. Kb5 {[%clk 0:00:09]}  Rg3 {[%clk 0:00:52]} 42. Ka6 {[%clk 0:00:08]}  Rxh3 {[%clk 0:00:52]} 43. Kxa7 {[%clk 0:00:08]}  h4 {[%clk 0:00:52]} 44. Kb7 {[%clk 0:00:08]}  Rg3 {[%clk 0:00:51]} 45. Rd3 {[%clk 0:00:08]}  h3 {[%clk 0:00:51]} 46. Be4 {[%clk 0:00:09]}  Rxd3 {[%clk 0:00:49]} 47. Bxd3 {[%clk 0:00:09]}  Bxc3 {[%clk 0:00:49]} 48. b5 {[%clk 0:00:08]}  Kf6 {[%clk 0:00:42]} 49. Be4 {[%clk 0:00:09]}  Ke5 {[%clk 0:00:42]} 50. Bh1 {[%clk 0:00:09]}  Kd4 {[%clk 0:00:39]} 51. Kxc7 {[%clk 0:00:09]}  Kc5 {[%clk 0:00:39]} 52. Kb7 {[%clk 0:00:07]}  Bb4 {[%clk 0:00:38]} 53. Kc7 {[%clk 0:00:07]}  Ba5 {[%clk 0:00:39]} 54. Kb7 {[%clk 0:00:07]}  h2 {[%clk 0:00:37]} 55. Kc7 {[%clk 0:00:07]}  Be1 {[%clk 0:00:37]} 56. Kb7 {[%clk 0:00:07]}  Bd2 {[%clk 0:00:31]} 57. Kc7 {[%clk 0:00:07]}  Be3 {[%clk 0:00:26]} 58. Kd7 {[%clk 0:00:07]}  Bf4 {[%clk 0:00:23]} 59. Kc7 {[%clk 0:00:07]}  Bg3 {[%clk 0:00:23]} 60. a5 {[%clk 0:00:08]}  Kxb5 {[%clk 0:00:16]} 61. axb6 {[%clk 0:00:07]}  Bf2 {[%clk 0:00:17]} 62. b7 {[%clk 0:00:07]}  Ba7 {[%clk 0:00:18]} 63. b8=Q+ {[%clk 0:00:07]}  Bxb8+ {[%clk 0:00:18]} 64. Kxb8 {[%clk 0:00:07]}  Kb6 {[%clk 0:00:19]} 65. Kc8 {[%clk 0:00:08]}  Kc5 {[%clk 0:00:19]} 66. Kd7 {[%clk 0:00:08]}  Kd4 {[%clk 0:00:20]} 67. Kxd6 {[%clk 0:00:09]}  Ke3 {[%clk 0:00:21]} 68. Ke6 {[%clk 0:00:10]}  Kf2 {[%clk 0:00:21]} 69. d6 {[%clk 0:00:10]}  Kg1 {[%clk 0:00:22]} 70. Bc6 {[%clk 0:00:10]}  Kf2 {[%clk 0:00:23]} 71. d7 {[%clk 0:00:11]}  Ke3 {[%clk 0:00:24]} 72. d8=Q {[%clk 0:00:11]}  Kf2 {[%clk 0:00:25]} 73. Qd4+ {[%clk 0:00:11]}  Kg3 {[%clk 0:00:24]} 74. Qe3+ {[%clk 0:00:11]}  Kg4 {[%clk 0:00:24]} 75. Qf2 {[%clk 0:00:11]}  h1=Q {[%clk 0:00:24]} 76. Bxh1 {[%clk 0:00:11]}  Kh5 {[%clk 0:00:24]} 77. Qg2 {[%clk 0:00:11]}  Kh6 {[%clk 0:00:24]} 78. Kf6 {[%clk 0:00:11]}  Kh5 {[%clk 0:00:25]} 79. Qg5# {[%clk 0:00:11]} 1-0


[Site "https://www.chess.com"]

[Event "Titled Tuesday Blitz October 31 Late 2023"]
[White "Szpar, Milosz"]
[Black "dodoucb"]
[WhiteFideId "1184989"]
[WhiteElo "2752"]
[BlackElo "2546"]
[Result "1-0"]
[Round "2"]
[TimeControl "180+1"]
[Date "2023.10.31"]
[WhiteClock "0:02:51"]
[BlackClock "0:02:06"]
[Board "47"]

1. Nf3 {[%clk 0:03:00]}  Nf6 {[%clk 0:02:55]} 2. c4 {[%clk 0:02:59]}  e6 {[%clk 0:02:55]} 3. b3 {[%clk 0:02:57]}  d5 {[%clk 0:02:55]} 4. Bb2 {[%clk 0:02:57]}  Be7 {[%clk 0:02:55]} 5. g3 {[%clk 0:02:56]}  b6 {[%clk 0:02:55]} 6. cxd5 {[%clk 0:02:55]}  exd5 {[%clk 0:02:55]} 7. Bg2 {[%clk 0:02:55]}  O-O {[%clk 0:02:55]} 8. O-O {[%clk 0:02:56]}  c6 {[%clk 0:02:56]} 9. e3 {[%clk 0:02:55]}  Bf5 {[%clk 0:02:55]} 10. Nc3 {[%clk 0:02:53]}  Nbd7 {[%clk 0:02:55]} 11. Nd4 {[%clk 0:02:53]}  Bd3 {[%clk 0:02:52]} 12. Nxc6 {[%clk 0:02:53]}  Qe8 {[%clk 0:02:53]} 13. Nxe7+ {[%clk 0:02:53]}  Qxe7 {[%clk 0:02:54]} 14. Re1 {[%clk 0:02:53]}  Qe6 {[%clk 0:02:51]} 15. Ne2 {[%clk 0:02:52]}  Rac8 {[%clk 0:02:42]} 16. Nf4 {[%clk 0:02:51]}  Qf5 {[%clk 0:02:06]} 17. Bh3 {[%clk 0:02:51]} 1-0


[Site "https://www.chess.com"]